fUST/lending_fUST_20250520
["ID","MTS","AMOUNT","RATE_DAILY","PERIOD"]
[361709509,1747711847317,-991.78,0.0001726,2]
[361709510,1747711847332,-876.43,0.0001726,2]
[361709511,1747711847346,-1162.29,0.0001726,2]
[361709512,1747711847361,-430.0,0.0001726,2]
[361709513,1747711847376,-430.0,0.0001726,2]
[361709514,1747711847390,-1258.54,0.0001726,2]
[361709515,1747711847417,-988.85,0.0001726,2]
[361709516,1747711847443,-430.0,0.0001726,2]
[361709517,1747711847464,-691.34,0.0001726,2]
[361709518,1747711847485,-778.27,0.0001726,2]
[361709519,1747711847505,-693.39,0.0001726,2]
[361709520,1747711847524,-151.0,0.0001726,2]
[361709521,1747711847542,-151.0,0.0001726,2]
[361709522,1747711847559,-151.0,0.0001726,2]
[361709523,1747711847575,-1147.48,0.0001726,2]
[361709524,1747711847592,-787.19,0.0001726,2]
[361709525,1747711847608,-430.0,0.0001726,2]
[361709526,1747711847624,-300.980291,0.0001726,2]
[361709527,1747711847640,-430.0,0.0001726,2]
[361709528,1747711847655,-430.0,0.0001726,2]
[361709529,1747711847671,-430.0,0.0001726,2]
[361709530,1747711847686,-741.22,0.0001726,2]
[361709531,1747711847701,-430.0,0.0001726,2]
[361709532,1747711847716,-1069.06,0.0001726,2]
[361709533,1747711847732,-760.09,0.0001726,2]
[361709534,1747711847746,-315.82201057,0.0001726,2]
[361709535,1747711847762,-430.0,0.0001726,2]
[361709536,1747711847777,-430.0,0.0001726,2]
[361709537,1747711847793,-644.9,0.0001726,2]
[361709538,1747711847809,-430.0,0.0001726,2]
[361709539,1747711847824,-430.0,0.0001726,2]
[361709540,1747711847839,-430.0,0.0001726,2]
[361709541,1747711847851,-430.0,0.0001726,2]
[361709542,1747711847861,-430.0,0.0001726,2]
[361709543,1747711847870,-520.23179445,0.0001726,2]
[361709544,1747711847881,-156.77276413,0.0001726,2]
[361709545,1747711847890,-517.02,0.0001726,2]
[361709546,1747711847900,-439.45,0.0001726,2]
[361709547,1747711847911,-430.0,0.0001726,2]
[361709548,1747711847921,-430.0,0.0001726,2]
[361709549,1747711847932,-430.0,0.0001726,2]
[361709550,1747711847942,-430.0,0.0001726,2]
[361709551,1747711847952,-430.0,0.0001726,2]
[361709552,1747711847962,-430.0,0.0001726,2]
[361709553,1747711847977,-430.0,0.0001726,2]
[361709554,1747711847989,-567.57,0.0001726,2]
[361709555,1747711847999,-593.15,0.0001726,2]
[361709556,1747711848010,-568.42,0.0001726,2]
[361709557,1747711848020,-430.0,0.0001726,2]
[361709558,1747711848031,-813.32,0.0001726,2]
[361709559,1747711848041,-458.19,0.0001726,2]
[361709560,1747711848052,-690.86,0.0001726,2]
[361709561,1747711848063,-644.15,0.0001726,2]
[361709562,1747711848073,-696.09,0.0001726,2]
[361709563,1747711848082,-999.97,0.0001726,2]
[361709564,1747711848093,-430.0,0.0001726,2]
[361709565,1747711848103,-430.0,0.0001726,2]
[361709566,1747711848114,-430.0,0.0001726,2]
[361709567,1747711848128,-473.12,0.0001726,2]
[361709568,1747711848142,-430.0,0.0001726,2]
[361709569,1747711848467,-430.0,0.0001726,2]
[361709570,1747711848499,-430.0,0.0001726,2]
[361709571,1747711848520,-430.0,0.0001726,2]
[361709572,1747711848531,-701.38,0.0001726,2]
[361709573,1747711848542,-430.0,0.0001726,2]
[361709574,1747711848551,-430.0,0.0001726,2]
[361709575,1747711848561,-1644.88,0.0001726,2]
[361709576,1747711848571,-5108.71,0.0001726,2]
[361709577,1747711848581,-1378.94,0.0001726,2]
[361709578,1747711848590,-430.0,0.0001726,2]
[361709579,1747711848600,-391.78911354,0.0001726,2]
[361709580,1747711848610,-2486.65,0.0001726,2]
[361709581,1747711848619,-430.0,0.0001726,2]
[361709582,1747711848629,-1088.71,0.0001726,2]
[361709583,1747711848639,-612.49,0.0001726,2]
[361709584,1747711848649,-1531.24,0.0001726,2]
[361709585,1747711848659,-430.0,0.0001726,2]
[361709586,1747711848670,-430.0,0.0001726,2]
[361709587,1747711848680,-430.0,0.0001726,2]
[361709588,1747711848690,-607.09,0.0001726,2]
[361709589,1747711848699,-430.0,0.0001726,2]
[361709590,1747711848709,-8336.56,0.0001726,2]
[361709591,1747711848719,-430.0,0.0001726,2]
[361709592,1747711848729,-430.0,0.0001726,2]
[361709593,1747711848738,-1900.16,0.0001726,2]
[361709594,1747711848748,-1589.93,0.0001726,2]
[361709595,1747711848758,-2958.13,0.0001726,2]
[361709596,1747711848768,-2299.91,0.0001726,2]
[361709597,1747711848777,-430.0,0.0001726,2]
[361709598,1747711848787,-523.52,0.0001726,2]
[361709599,1747711848797,-430.0,0.0001726,2]
[361709600,1747711848807,-432.31354147,0.0001726,2]
[361709601,1747711848816,-579.3,0.0001726,2]
[361709602,1747711848826,-430.0,0.0001726,2]
[361709603,1747711848835,-456.86,0.0001726,2]
[361709604,1747711848845,-560.64,0.0001726,2]
[361709605,1747711848856,-957.38,0.0001726,2]
[361709606,1747711848866,-447.77,0.0001726,2]
[361709607,1747711848881,-501.14,0.0001726,2]
[361709608,1747711848891,-651.31,0.0001726,2]
[361709609,1747711848901,-421.01076109,0.0001726,2]
[361709610,1747711848910,-1623.99,0.0001726,2]
[361709611,1747711848920,-1339.36,0.0001726,2]
[361709612,1747711848930,-931.73,0.0001726,2]
[361709613,1747711848939,-430.0,0.0001726,2]
[361709614,1747711848949,-151.0,0.0001726,2]
[361709615,1747711848959,-151.0,0.0001726,2]
[361709616,1747711848968,-151.0,0.0001726,2]
[361709617,1747711848979,-2393.49,0.0001726,2]
[361709618,1747711848988,-430.0,0.0001726,2]
[361709619,1747711848998,-1566.45,0.0001726,2]
[361709620,1747711849011,-430.0,0.0001726,2]
[361709621,1747711849021,-597.79,0.0001726,2]
[361709622,1747711849031,-526.68,0.0001726,2]
[361709623,1747711849041,-430.0,0.0001726,2]
[361709624,1747711849050,-404.14674,0.0001726,2]
[361709625,1747711849061,-3279.27,0.0001726,2]
[361709626,1747711849071,-404.14674,0.0001726,2]
[361709627,1747711849080,-404.14674,0.0001726,2]
[361709628,1747711849091,-430.0,0.0001726,2]
[361709629,1747711849101,-1025.15,0.0001726,2]
[361709630,1747711849111,-733.78,0.0001726,2]
[361709631,1747711849122,-1551.57,0.0001726,2]
[361709632,1747711849137,-822.06,0.0001726,2]
[361709633,1747711849147,-404.14674,0.0001726,2]
[361709634,1747711849157,-404.14674,0.0001726,2]
[361709635,1747711849166,-404.146744,0.0001726,2]
[361709636,1747711849177,-430.0,0.0001726,2]
[361709637,1747711849187,-4382.81,0.0001726,2]
[361709638,1747711849197,-1200.11,0.0001726,2]
[361709639,1747711849207,-430.0,0.0001726,2]
[361709640,1747711849217,-11494.75,0.0001726,2]
[361709641,1747711849228,-430.0,0.0001726,2]
[361709642,1747711849237,-598.5,0.0001726,2]
[361709643,1747711849247,-430.0,0.0001726,2]
[361709644,1747711849256,-551.67,0.0001726,2]
[361709645,1747711849266,-2259.3,0.0001726,2]
[361709646,1747711849276,-2347.98,0.0001726,2]
[361709647,1747711849286,-2035.58,0.0001726,2]
[361709648,1747711849295,-532.11,0.0001726,2]
[361709649,1747711849306,-430.0,0.0001726,2]
[361709650,1747711849315,-498.47,0.0001726,2]
[361709651,1747711849325,-1125.92,0.0001726,2]
[361709652,1747711849335,-2097.2,0.0001726,2]
[361709653,1747711849344,-752.17,0.0001726,2]
[361709654,1747711849353,-430.0,0.0001726,2]
[361709655,1747711849363,-2113.16,0.0001726,2]
[361709656,1747711849373,-2923.93,0.0001726,2]
[361709657,1747711849383,-2279.56,0.0001726,2]
[361709658,1747711849392,-1336.73,0.0001726,2]
[361709659,1747711849402,-759.08,0.0001726,2]
[361709660,1747711849412,-3777.83,0.0001726,2]
[361709661,1747711849421,-688.16,0.0001726,2]
[361709662,1747711849431,-1347.23,0.0001726,2]
[361709663,1747711849440,-3144.53,0.0001726,2]
[361709664,1747711849450,-1348.52,0.0001726,2]
[361709665,1747711849459,-1068.66,0.0001726,2]
[361709666,1747711849469,-560.96,0.0001726,2]
[361709667,1747711849478,-1984.27,0.0001726,2]
[361709668,1747711849488,-11069.63,0.0001726,2]
[361709669,1747711849498,-2229.9,0.0001726,2]
[361709670,1747711849507,-1488.84,0.0001726,2]
[361709671,1747711849517,-580.11,0.0001726,2]
[361709672,1747711849528,-430.0,0.0001726,2]
[361709673,1747711849538,-430.0,0.0001726,2]
[361709674,1747711849548,-430.0,0.0001726,2]
[361709675,1747711849558,-858.91,0.0001726,2]
[361709676,1747711849568,-743.82,0.0001726,2]
[361709677,1747711849578,-430.0,0.0001726,2]
[361709678,1747711849587,-430.0,0.0001726,2]
[361709679,1747711849598,-1501.41,0.0001726,2]
[361709680,1747711849607,-430.0,0.0001726,2]
[361709681,1747711849617,-430.0,0.0001726,2]
[361709682,1747711849626,-1744.35,0.0001726,2]
[361709683,1747711849636,-3384.45,0.0001726,2]
[361709684,1747711849646,-430.0,0.0001726,2]
[361709685,1747711849655,-500.0,0.00017273,2]
[361709686,1747711849665,-500.0,0.00017273,2]
[361709687,1747711849675,-500.0,0.00017273,2]
[361709688,1747711849685,-500.0,0.00017273,2]
[361709689,1747711849695,-500.0,0.00017273,2]
[361709690,1747711849704,-431.61066967,0.00017273,2]
[361709691,1747711849714,-500.0,0.00017273,2]
[361709692,1747711849724,-500.0,0.00017273,2]
[361709693,1747711849734,-500.53340334,0.00017273,2]
[361709694,1747711849743,-343.42691864,0.00017273,2]
[361709695,1747711849752,-500.0,0.00017273,2]
[361709696,1747711849762,-500.0,0.00017273,2]
[361709697,1747711849774,-500.0,0.00017273,2]
[361709698,1747711849783,-500.0,0.00017273,2]
[361709699,1747711849793,-500.0,0.00017273,2]
[361709700,1747711849804,-500.0,0.00017273,2]
[361709701,1747711849814,-502.00216389,0.00017273,2]
[361709702,1747711849824,-477.63001507,0.00017273,2]
[361709703,1747711849834,-500.0,0.00017273,2]
[361709704,1747711849845,-500.0,0.00017273,2]
[361709705,1747711849856,-500.0,0.00017273,2]
[361709706,1747711849866,-500.0,0.00017273,2]
[361709707,1747711849875,-500.0,0.00017273,2]
[361709708,1747711849885,-500.0,0.00017273,2]
[361709709,1747711849895,-500.0,0.00017273,2]
[361709710,1747711849908,-270.15756325,0.00017273,2]
[361709711,1747711849917,-500.0,0.00017344,2]
[361709712,1747711849928,-554.9844179,0.00017344,2]
[361709713,1747711849938,-500.0,0.00017344,2]
[361709714,1747711849948,-500.0,0.00017344,2]
[361709715,1747711849958,-500.0,0.00017344,2]
[361709716,1747711849968,-500.0,0.00017344,2]
[361709717,1747711849978,-500.0,0.00017344,2]
[361709718,1747711849988,-500.0,0.00017344,2]
[361709719,1747711849998,-500.0,0.00017344,2]
[361709720,1747711850010,-500.0,0.00017344,2]
[361709721,1747711850020,-500.0,0.00017344,2]
[361709722,1747711850032,-506.1473389,0.00017344,2]
[361709723,1747711850042,-500.0,0.00017344,2]
[361709724,1747711850053,-223.77851,0.00017344,2]
[361709725,1747711850064,-500.0,0.00017344,2]
[361709726,1747711850074,-349.5,0.0001738,2]
[361709727,1747711850085,-500.0,0.00017385,2]
[361709728,1747711850096,-500.0,0.00017385,2]
[361709729,1747711850106,-500.0,0.00017385,2]
[361709730,1747711850115,-500.0,0.00017406,2]
[361709731,1747711850129,-500.0,0.00017406,2]
[361709732,1747711850139,-500.0,0.00017406,2]
[361709733,1747711850150,-500.0,0.00017406,2]
[361709734,1747711850160,-500.0,0.00017406,2]
[361709735,1747711850172,-501.17290813,0.00017408,2]
[361709736,1747711850183,-500.0,0.00017408,2]
[361709737,1747711850196,-500.0,0.00017408,2]
[361709738,1747711850209,-500.0,0.00017432,2]
[361709739,1747711850219,-267.95115484,0.00017434,2]
[361709740,1747711850229,-500.0,0.00017434,2]
[361709741,1747711850239,-500.0,0.00017434,2]
[361709742,1747711850251,-3865.67101959,0.00017452,2]
[361709743,1747711850260,-500.0,0.00017455,2]
[361709744,1747711850272,-216.01084162,0.00017455,2]
[361709745,1747711850282,-500.0,0.00017465,2]
[361709746,1747711850294,-2000.0,0.000175,2]
[361709747,1747711850305,-160.0,0.0001751,2]
[361709748,1747711850314,-160.0,0.0001751,2]
[361709749,1747711850325,-160.0,0.0001751,2]
[361709750,1747711850335,-160.0,0.0001751,2]
[361709751,1747711850345,-422.65292303,0.0001751,2]
[361709752,1747711850356,-160.0,0.0001751,2]
[361709753,1747711850367,-212.38718278,0.0001751,2]
[361709754,1747711850378,-998.82236359,0.0001751,2]
[361709755,1747711850387,-160.0,0.0001751,2]
[361709756,1747711850397,-12640.66806714,0.0001751,2]
[361709757,1747711850408,-160.0,0.0001751,2]
[361709758,1747711850417,-160.0,0.0001751,2]
[361709759,1747711850427,-160.0,0.0001751,2]
[361709760,1747711850436,-314.48519801,0.0001751,2]
[361709761,1747711850445,-151.0,0.00017533,2]
[361709762,1747711850454,-357.984021,0.00017534,2]
[361709763,1747711850466,-357.984021,0.00017534,2]
[361709764,1747711850478,-357.984021,0.00017534,2]
[361709765,1747711850488,-357.984021,0.00017534,2]
[361709766,1747711850497,-151.0,0.00017534,2]
[361709767,1747711850507,-151.0,0.00017534,2]
[361709768,1747711850517,-430.0,0.00017534,2]
[361709769,1747711850526,-836.21,0.00017534,2]
[361709770,1747711850535,-430.0,0.00017534,2]
[361709771,1747711850545,-519.31,0.00017534,2]
[361709772,1747711850554,-430.0,0.00017534,2]
[361709773,1747711850564,-430.0,0.00017534,2]
[361709774,1747711850573,-535.99,0.00017534,2]
[361709775,1747711850583,-430.0,0.00017534,2]
[361709776,1747711850592,-430.0,0.00017534,2]
[361709777,1747711850601,-430.0,0.00017534,2]
[361709778,1747711850611,-430.0,0.00017534,2]
[361709779,1747711850621,-430.0,0.00017534,2]
[361709780,1747711850631,-430.0,0.00017534,2]
[361709781,1747711850641,-546.95,0.00017534,2]
[361709782,1747711850652,-440.89,0.00017534,2]
[361709783,1747711850663,-430.0,0.00017534,2]
[361709784,1747711850674,-772.82,0.00017534,2]
[361709785,1747711850684,-430.0,0.00017534,2]
[361709786,1747711850694,-430.0,0.00017534,2]
[361709787,1747711850704,-430.0,0.00017534,2]
[361709788,1747711850713,-230.98783582,0.00017534,2]
[361709789,1747711850725,-1828.95,0.00017534,2]
[361709790,1747711850735,-430.0,0.00017534,2]
[361709791,1747711850744,-430.0,0.00017534,2]
[361709792,1747711850753,-689.94,0.00017534,2]
[361709793,1747711850763,-430.0,0.00017534,2]
[361709794,1747711850772,-530.0,0.00017534,2]
[361709795,1747711850782,-151.0,0.00017534,2]
[361709796,1747711850793,-241.52916043,0.00017534,2]
[361709797,1747711850805,-488.86,0.00017534,2]
[361709798,1747711850816,-430.0,0.00017534,2]
[361709799,1747711850827,-430.0,0.00017534,2]
[361709800,1747711850838,-1049.69,0.00017534,2]
[361709801,1747711850849,-749.3,0.00017534,2]
[361709802,1747711850859,-430.0,0.00017534,2]
[361709803,1747711850869,-609.45,0.00017534,2]
[361709804,1747711850879,-1142.23,0.00017534,2]
[361709805,1747711850889,-430.0,0.00017534,2]
[361709806,1747711850900,-430.0,0.00017534,2]
[361709807,1747711850910,-760.07,0.00017534,2]
[361709808,1747711850922,-1018.12,0.00017534,2]
[361709809,1747711850932,-430.0,0.00017534,2]
[361709810,1747711850942,-585.86,0.00017534,2]
[361709811,1747711850953,-430.0,0.00017534,2]
[361709812,1747711850963,-2263.57,0.00017534,2]
[361709813,1747711850975,-1646.69,0.00017534,2]
[361709814,1747711850984,-1451.1,0.00017534,2]
[361709815,1747711850994,-430.0,0.00017534,2]
[361709816,1747711851003,-962.58,0.00017534,2]
[361709817,1747711851014,-430.0,0.00017534,2]
[361709818,1747711851024,-450.57,0.00017534,2]
[361709819,1747711851034,-430.0,0.00017534,2]
[361709820,1747711851044,-430.0,0.00017534,2]
[361709821,1747711851056,-430.0,0.00017534,2]
[361709822,1747711851067,-991.78,0.00017534,2]
[361709823,1747711851076,-876.43,0.00017534,2]
[361709824,1747711851086,-1162.29,0.00017534,2]
[361709825,1747711851097,-430.0,0.00017534,2]
[361709826,1747711851106,-430.0,0.00017534,2]
[361709827,1747711851116,-1258.54,0.00017534,2]
[361709828,1747711851127,-988.85,0.00017534,2]
[361709829,1747711851140,-434.65507169,0.00017534,2]
[361709830,1747711851150,-691.34,0.00017534,2]
[361709831,1747711851161,-778.27,0.00017534,2]
[361709832,1747711851172,-693.39,0.00017534,2]
[361709833,1747711851183,-151.0,0.00017534,2]
[361709834,1747711851194,-1147.48,0.00017534,2]
[361709835,1747711851204,-787.19,0.00017534,2]
[361709836,1747711851216,-430.0,0.00017534,2]
[361709837,1747711851230,-430.0,0.00017534,2]
[361709838,1747711851239,-430.0,0.00017534,2]
[361709839,1747711851249,-430.0,0.00017534,2]
[361709840,1747711851259,-741.22,0.00017534,2]
[361709841,1747711851269,-430.0,0.00017534,2]
[361709842,1747711851278,-1069.06,0.00017534,2]
[361709843,1747711851288,-760.09,0.00017534,2]
[361709844,1747711851297,-430.0,0.00017534,2]
[361709845,1747711851307,-430.0,0.00017534,2]
[361709846,1747711851316,-644.9,0.00017534,2]
[361709847,1747711851326,-430.0,0.00017534,2]
[361709848,1747711851336,-430.0,0.00017534,2]
[361709849,1747711851346,-430.0,0.00017534,2]
[361709850,1747711851355,-413.69511594,0.00017534,2]
[361709851,1747711851364,-430.0,0.00017534,2]
[361709852,1747711851374,-517.02,0.00017534,2]
[361709853,1747711851383,-439.45,0.00017534,2]
[361709854,1747711851394,-430.0,0.00017534,2]
[361709855,1747711851404,-430.0,0.00017534,2]
[361709856,1747711851413,-572.79259724,0.00017534,2]
[361709857,1747711851423,-430.0,0.00017534,2]
[361709858,1747711851432,-430.0,0.00017534,2]
[361709859,1747711851442,-430.0,0.00017534,2]
[361709860,1747711851451,-295.34527231,0.00017534,2]
[361709861,1747711851461,-567.57,0.00017534,2]
[361709862,1747711851473,-593.15,0.00017534,2]
[361709863,1747711851483,-568.42,0.00017534,2]
[361709864,1747711851493,-430.0,0.00017534,2]
[361709865,1747711851502,-813.32,0.00017534,2]
[361709866,1747711851512,-458.19,0.00017534,2]
[361709867,1747711851522,-690.86,0.00017534,2]
[361709868,1747711851531,-644.15,0.00017534,2]
[361709869,1747711851542,-696.09,0.00017534,2]
[361709870,1747711851551,-999.97,0.00017534,2]
[361709871,1747711851561,-430.0,0.00017534,2]
[361709872,1747711851570,-430.0,0.00017534,2]
[361709873,1747711851580,-434.04241686,0.00017534,2]
[361709874,1747711851590,-473.12,0.00017534,2]
[361709875,1747711851600,-430.0,0.00017534,2]
[361709876,1747711851610,-431.38088767,0.00017534,2]
[361709877,1747711851620,-430.0,0.00017534,2]
[361709878,1747711851630,-430.0,0.00017534,2]
[361709879,1747711851639,-701.38,0.00017534,2]
[361709880,1747711851649,-430.0,0.00017534,2]
[361709881,1747711851659,-430.0,0.00017534,2]
[361709882,1747711851669,-1644.88,0.00017534,2]
[361709883,1747711851679,-5108.71,0.00017534,2]
[361709884,1747711851689,-1378.94,0.00017534,2]
[361709885,1747711851699,-430.0,0.00017534,2]
[361709886,1747711851851,-2486.65,0.00017534,2]
[361709887,1747711851863,-430.0,0.00017534,2]
[361709888,1747711851874,-1088.71,0.00017534,2]
[361709889,1747711851885,-612.49,0.00017534,2]
[361709890,1747711851895,-1531.24,0.00017534,2]
[361709891,1747711851906,-413.41027675,0.00017534,2]
[361709892,1747711851916,-430.0,0.00017534,2]
[361709893,1747711851926,-430.0,0.00017534,2]
[361709894,1747711851936,-607.09,0.00017534,2]
[361709895,1747711851947,-430.0,0.00017534,2]
[361709896,1747711851956,-8336.56,0.00017534,2]
[361709897,1747711851967,-430.0,0.00017534,2]
[361709898,1747711851979,-430.0,0.00017534,2]
[361709899,1747711851989,-1900.16,0.00017534,2]
[361709900,1747711851999,-1589.93,0.00017534,2]
[361709901,1747711852009,-2958.13,0.00017534,2]
[361709902,1747711852020,-2299.91,0.00017534,2]
[361709903,1747711852030,-430.0,0.00017534,2]
[361709904,1747711852040,-523.52,0.00017534,2]
[361709905,1747711852051,-430.0,0.00017534,2]
[361709906,1747711852062,-579.3,0.00017534,2]
[361709907,1747711852072,-300.43918315,0.00017534,2]
[361709908,1747711852082,-456.86,0.00017534,2]
[361709909,1747711852092,-560.64,0.00017534,2]
[361709910,1747711852102,-957.38,0.00017534,2]
[361709911,1747711852112,-447.77,0.00017534,2]
[361709912,1747711852122,-501.14,0.00017534,2]
[361709913,1747711852141,-651.31,0.00017534,2]
[361709914,1747711852151,-1623.99,0.00017534,2]
[361709915,1747711852161,-1339.36,0.00017534,2]
[361709916,1747711852172,-931.73,0.00017534,2]
[361709917,1747711852183,-430.0,0.00017534,2]
[361709918,1747711852193,-2393.49,0.00017534,2]
[361709919,1747711852204,-430.0,0.00017534,2]
[361709920,1747711852214,-1566.45,0.00017534,2]
[361709921,1747711852226,-430.0,0.00017534,2]
[361709922,1747711852236,-597.79,0.00017534,2]
[361709923,1747711852247,-526.68,0.00017534,2]
[361709924,1747711852257,-430.0,0.00017534,2]
[361709925,1747711852267,-3279.27,0.00017534,2]
[361709926,1747711852278,-430.0,0.00017534,2]
[361709927,1747711852288,-1025.15,0.00017534,2]
[361709928,1747711852299,-733.78,0.00017534,2]
[361709929,1747711852310,-1551.57,0.00017534,2]
[361709930,1747711852320,-822.06,0.00017534,2]
[361709931,1747711852330,-430.0,0.00017534,2]
[361709932,1747711852340,-4382.81,0.00017534,2]
[361709933,1747711852350,-1200.11,0.00017534,2]
[361709934,1747711852362,-430.0,0.00017534,2]
[361709935,1747711852374,-11494.75,0.00017534,2]
[361709936,1747711852384,-430.0,0.00017534,2]
[361709937,1747711852394,-598.5,0.00017534,2]
[361709938,1747711852404,-430.0,0.00017534,2]
[361709939,1747711852414,-551.67,0.00017534,2]
[361709940,1747711852425,-2259.3,0.00017534,2]
[361709941,1747711852434,-2347.98,0.00017534,2]
[361709942,1747711852444,-2035.58,0.00017534,2]
[361709943,1747711852455,-532.11,0.00017534,2]
[361709944,1747711852465,-430.0,0.00017534,2]
[361709945,1747711852476,-498.47,0.00017534,2]
[361709946,1747711852486,-1125.92,0.00017534,2]
[361709947,1747711852496,-2097.2,0.00017534,2]
[361709948,1747711852506,-752.17,0.00017534,2]
[361709949,1747711852515,-430.0,0.00017534,2]
[361709950,1747711852526,-2113.16,0.00017534,2]
[361709951,1747711852536,-2923.93,0.00017534,2]
[361709952,1747711852547,-2279.56,0.00017534,2]
[361709953,1747711852558,-1336.73,0.00017534,2]
[361709954,1747711852568,-759.08,0.00017534,2]
[361709955,1747711852579,-3777.83,0.00017534,2]
[361709956,1747711852589,-688.16,0.00017534,2]
[361709957,1747711852600,-1347.23,0.00017534,2]
[361709958,1747711852611,-3144.53,0.00017534,2]
[361709959,1747711852622,-1348.52,0.00017534,2]
[361709960,1747711852633,-1068.66,0.00017534,2]
[361709961,1747711852642,-560.96,0.00017534,2]
[361709962,1747711852651,-1984.27,0.00017534,2]
[361709963,1747711852662,-11069.63,0.00017534,2]
[361709964,1747711852673,-2229.9,0.00017534,2]
[361709965,1747711852683,-1488.84,0.00017534,2]
[361709966,1747711852693,-580.11,0.00017534,2]
[361709967,1747711852703,-430.0,0.00017534,2]
[361709968,1747711852713,-430.0,0.00017534,2]
[361709969,1747711852725,-430.0,0.00017534,2]
[361709970,1747711852735,-743.82,0.00017534,2]
[361709971,1747711852745,-430.0,0.00017534,2]
[361709972,1747711852755,-858.91,0.00017534,2]
[361709973,1747711852764,-430.0,0.00017534,2]
[361709974,1747711852774,-1501.41,0.00017534,2]
[361709975,1747711852784,-430.0,0.00017534,2]
[361709976,1747711852794,-430.0,0.00017534,2]
[361709977,1747711852804,-1744.35,0.00017534,2]
[361709978,1747711852814,-3384.45,0.00017534,2]
[361709979,1747711852824,-430.0,0.00017534,2]
[361709980,1747711852834,-357.984021,0.00017627,2]
[361709981,1747711852844,-357.984021,0.00017627,2]
[361709982,1747711852855,-423.975208,0.00017706,2]
[361709983,1747711852867,-10874.44827515,0.00017708,2]
[361709984,1747711852878,-3865.67101959,0.00017728,2]
[361709985,1747711852888,-998.82236359,0.0001779,3]
[361709986,1747711852898,-212.38718278,0.0001779,3]
[361709987,1747711852908,-12640.66806714,0.0001779,3]
[361709988,1747711852918,-314.48519801,0.0001779,3]
[361709989,1747711852928,-151.0,0.00017797,2]
[361709990,1747711852938,-215.0738,0.00017797,2]
[361709991,1747711852948,-1692.7,0.00017798,3]
[361709992,1747711852959,-1692.7,0.00017798,3]
[361709993,1747711852969,-151.0,0.000178,2]
[361709994,1747711852982,-357.984021,0.00017808,2]
[361709995,1747711852991,-357.984021,0.00017808,2]
[361709996,1747711853000,-357.984021,0.00017808,2]
[361709997,1747711853010,-357.984021,0.00017808,2]
[361709998,1747711853019,-151.0,0.00017808,2]
[361709999,1747711853028,-430.0,0.00017808,2]
[361710000,1747711853038,-836.21,0.00017808,2]
[361710001,1747711853047,-430.0,0.00017808,2]
[361710002,1747711853057,-519.31,0.00017808,2]
[361710003,1747711853068,-430.0,0.00017808,2]
[361710004,1747711853078,-430.0,0.00017808,2]
[361710005,1747711853089,-535.99,0.00017808,2]
[361710006,1747711853100,-430.0,0.00017808,2]
[361710007,1747711853109,-430.0,0.00017808,2]
[361710008,1747711853120,-430.0,0.00017808,2]